[Event "*** SCC Grand Prix: Titled Tuesday Blitz"]
[Site "Chess.com"]
[Date "2020.10.06"]
[Round "10"]
[White "CzechmVIII"]
[Black "Me_ch_an"]
[Result "0-1"]
[WhiteElo "2158"]
[BlackElo "2314"]
[TimeControl "180+1"]
[EndTime "11:58:28 PDT"]
[Termination "Me_ch_an won by checkmate"]

1. e4 {[%clk 0:03:00.9]} 1... c5 {[%clk 0:02:59.9]} 2. Nf3 {[%clk 0:03:00.6]}
2... Nc6 {[%clk 0:03:00]} 3. Nc3 {[%clk 0:03:00.6]} 3... e6 {[%clk 0:02:58.7]}
4. d4 {[%clk 0:03:00.3]} 4... cxd4 {[%clk 0:02:59.6]} 5. Nxd4 {[%clk 0:03:00.7]}
5... Qb6 {[%clk 0:02:59.8]} 6. Ndb5 {[%clk 0:02:53.4]} 6... a6 {[%clk
0:02:52.7]} 7. Nd6+ {[%clk 0:02:49.6]} 7... Bxd6 {[%clk 0:02:50.7]} 8. Qxd6
{[%clk 0:02:49.5]} 8... Qb4 {[%clk 0:02:48.4]} 9. Qg3 {[%clk 0:02:01.5]} 9...
Qf8 {[%clk 0:02:06.8]} 10. Bf4 {[%clk 0:01:51.1]} 10... Nf6 {[%clk 0:02:06.1]}
11. Bd6 {[%clk 0:01:36.3]} 11... Nh5 {[%clk 0:02:01]} 12. Qd3 {[%clk 0:01:06.3]}
12... Nb4 {[%clk 0:02:00.3]} 13. Qd2 {[%clk 0:01:01]} 13... Nxc2+ {[%clk
0:01:54.3]} 14. Kd1 {[%clk 0:01:01.1]} 14... Qg8 {[%clk 0:01:24.8]} 15. Kxc2
{[%clk 0:01:01.1]} 15... b5 {[%clk 0:01:23.2]} 16. Rd1 {[%clk 0:00:58.9]} 16...
Bb7 {[%clk 0:01:13.2]} 17. f3 {[%clk 0:00:50.6]} 17... Rc8 {[%clk 0:01:12.1]}
18. Kb1 {[%clk 0:00:50.7]} 18... Bc6 {[%clk 0:01:02.3]} 19. g4 {[%clk
0:00:41.7]} 19... Nf6 {[%clk 0:01:01.8]} 20. g5 {[%clk 0:00:41.4]} 20... Nh5
{[%clk 0:01:01.7]} 21. Be2 {[%clk 0:00:33.3]} 21... h6 {[%clk 0:01:01.8]} 22. g6
{[%clk 0:00:32.3]} 22... fxg6 {[%clk 0:00:58.2]} 23. e5 {[%clk 0:00:25.5]} 23...
Qf7 {[%clk 0:00:55.1]} 24. Ne4 {[%clk 0:00:24.1]} 24... Qf4 {[%clk 0:00:39.4]}
25. Qxf4 {[%clk 0:00:17.8]} 25... Nxf4 {[%clk 0:00:38.3]} 26. Bf1 {[%clk
0:00:17.9]} 26... Bd5 {[%clk 0:00:22.7]} 27. Ba3 {[%clk 0:00:16.2]} 27... Rc6
{[%clk 0:00:16.5]} 28. Nd6+ {[%clk 0:00:15.6]} 28... Rxd6 {[%clk 0:00:15.6]} 29.
exd6 {[%clk 0:00:12.5]} 29... Bxf3 {[%clk 0:00:15.7]} 30. Bxb5 {[%clk
0:00:11.4]} 30... Bxh1 {[%clk 0:00:14.7]} 31. Rxh1 {[%clk 0:00:10.5]} 31... axb5
{[%clk 0:00:14.9]} 32. Rc1 {[%clk 0:00:11.4]} 32... Kf7 {[%clk 0:00:13.7]} 33.
Rc7 {[%clk 0:00:12]} 33... Rd8 {[%clk 0:00:12]} 34. Rb7 {[%clk 0:00:12.3]} 34...
e5 {[%clk 0:00:12.1]} 35. Rxb5 {[%clk 0:00:11.9]} 35... Ke6 {[%clk 0:00:12.7]}
36. b3 {[%clk 0:00:11.3]} 36... Nd5 {[%clk 0:00:12.9]} 37. Rb7 {[%clk
0:00:10.6]} 37... Rc8 {[%clk 0:00:10.9]} 38. Bc1 {[%clk 0:00:09]} 38... e4
{[%clk 0:00:10.4]} 39. Rb5 {[%clk 0:00:07.2]} 39... Nc3+ {[%clk 0:00:09.7]} 40.
Kb2 {[%clk 0:00:06.4]} 40... Nxb5 {[%clk 0:00:10.6]} 41. Be3 {[%clk 0:00:05.2]}
41... Nxd6 {[%clk 0:00:10.9]} 42. a4 {[%clk 0:00:04.9]} 42... Nf5 {[%clk
0:00:11.2]} 43. Bf2 {[%clk 0:00:04]} 43... e3 {[%clk 0:00:11.7]} 44. Be1 {[%clk
0:00:04.9]} 44... e2 {[%clk 0:00:11.5]} 45. a5 {[%clk 0:00:05.8]} 45... Nd4
{[%clk 0:00:11.2]} 46. a6 {[%clk 0:00:06.7]} 46... Ra8 {[%clk 0:00:10.6]} 47. b4
{[%clk 0:00:07.6]} 47... Rxa6 {[%clk 0:00:10.8]} 48. Kc3 {[%clk 0:00:08.5]}
48... Nf3 {[%clk 0:00:10.6]} 49. Kc4 {[%clk 0:00:09.4]} 49... Nxe1 {[%clk
0:00:10.3]} 50. Kb5 {[%clk 0:00:10.3]} 50... Ra8 {[%clk 0:00:10.1]} 51. Kb6
{[%clk 0:00:11.2]} 51... Rb8+ {[%clk 0:00:10.2]} 52. Ka5 {[%clk 0:00:11.2]}
52... Nd3 {[%clk 0:00:09.7]} 53. b5 {[%clk 0:00:12.1]} 53... Rxb5+ {[%clk
0:00:09.8]} 54. Ka6 {[%clk 0:00:12.9]} 54... e1=Q {[%clk 0:00:10]} 55. Kxb5
{[%clk 0:00:13.7]} 55... Qb4+ {[%clk 0:00:09.8]} 56. Ka6 {[%clk 0:00:14.6]}
56... Nc5+ {[%clk 0:00:09.8]} 57. Ka7 {[%clk 0:00:15.5]} 57... Qb7# {[%clk
0:00:10]} 0-1

[Event "*** SCC Grand Prix: Titled Tuesday Blitz"]
[Site "Chess.com"]
[Date "2020.10.06"]
[Round "10"]
[White "karwowskikacper"]
[Black "Sven_Tica"]
[Result "0-1"]
[WhiteElo "2474"]
[BlackElo "2646"]
[TimeControl "180+1"]
[EndTime "11:58:30 PDT"]
[Termination "Sven_Tica won by checkmate"]

1. e4 {[%clk 0:03:00.9]} 1... c5 {[%clk 0:03:00.5]} 2. Nf3 {[%clk 0:02:58.7]}
2... Nf6 {[%clk 0:03:01.2]} 3. Nc3 {[%clk 0:02:57.4]} 3... d5 {[%clk 0:03:01.3]}
4. exd5 {[%clk 0:02:56.1]} 4... Nxd5 {[%clk 0:03:02.2]} 5. Bb5+ {[%clk
0:02:56.3]} 5... Bd7 {[%clk 0:03:02.7]} 6. O-O {[%clk 0:02:55.2]} 6... Nxc3
{[%clk 0:02:59.1]} 7. Bxd7+ {[%clk 0:02:55.1]} 7... Qxd7 {[%clk 0:03:00]} 8.
dxc3 {[%clk 0:02:55.4]} 8... Qxd1 {[%clk 0:02:55.5]} 9. Rxd1 {[%clk 0:02:56.3]}
9... Nc6 {[%clk 0:02:55.4]} 10. Be3 {[%clk 0:02:49.4]} 10... e6 {[%clk
0:02:55.1]} 11. a3 {[%clk 0:02:43.4]} 11... Be7 {[%clk 0:02:52.9]} 12. b4 {[%clk
0:02:43.2]} 12... Rc8 {[%clk 0:02:38.8]} 13. Rab1 {[%clk 0:02:35.1]} 13... a6
{[%clk 0:02:25.8]} 14. bxc5 {[%clk 0:02:32]} 14... Na5 {[%clk 0:02:23.8]} 15. c6
{[%clk 0:02:15.2]} 15... Rxc6 {[%clk 0:02:19.2]} 16. Bb6 {[%clk 0:02:14.6]}
16... Nc4 {[%clk 0:02:19]} 17. Bd4 {[%clk 0:02:15.1]} 17... O-O {[%clk
0:02:02.6]} 18. Rxb7 {[%clk 0:02:14.8]} 18... Bxa3 {[%clk 0:02:02.8]} 19. Ra7
{[%clk 0:01:59.3]} 19... Bd6 {[%clk 0:01:57.5]} 20. Ra1 {[%clk 0:01:54.3]} 20...
a5 {[%clk 0:01:31.9]} 21. Rd7 {[%clk 0:01:30.6]} 21... e5 {[%clk 0:01:11.1]} 22.
Be3 {[%clk 0:01:30.4]} 22... h6 {[%clk 0:01:09.3]} 23. Nd2 {[%clk 0:01:23.3]}
23... Nxe3 {[%clk 0:01:00]} 24. fxe3 {[%clk 0:01:23.1]} 24... Ra8 {[%clk
0:01:00.5]} 25. c4 {[%clk 0:01:06.4]} 25... Bb4 {[%clk 0:00:57.4]} 26. Ra4
{[%clk 0:00:59.2]} 26... Kf8 {[%clk 0:00:43.4]} 27. Rd5 {[%clk 0:00:53.7]} 27...
f6 {[%clk 0:00:43.1]} 28. Kf2 {[%clk 0:00:40]} 28... Ke7 {[%clk 0:00:41.7]} 29.
Ke2 {[%clk 0:00:40.1]} 29... Rd8 {[%clk 0:00:38.9]} 30. Rxd8 {[%clk 0:00:35.6]}
30... Kxd8 {[%clk 0:00:39.8]} 31. e4 {[%clk 0:00:16.2]} 31... Kc7 {[%clk
0:00:32.8]} 32. Nb1 {[%clk 0:00:16.3]} 32... Rxc4 {[%clk 0:00:31.4]} 33. c3
{[%clk 0:00:16.8]} 33... Rxe4+ {[%clk 0:00:30.3]} 34. Kd3 {[%clk 0:00:17.2]}
34... Re1 {[%clk 0:00:30]} 35. cxb4 {[%clk 0:00:16.5]} 35... Rxb1 {[%clk
0:00:30.1]} 36. bxa5 {[%clk 0:00:17.4]} 36... Kb7 {[%clk 0:00:30.3]} 37. a6+
{[%clk 0:00:17.4]} 37... Ka7 {[%clk 0:00:30.7]} 38. Ra2 {[%clk 0:00:16.8]} 38...
Rb6 {[%clk 0:00:28.6]} 39. Ke4 {[%clk 0:00:16.5]} 39... Rxa6 {[%clk 0:00:28.1]}
40. Rd2 {[%clk 0:00:17.1]} 40... Rc6 {[%clk 0:00:25.7]} 41. Rd7+ {[%clk
0:00:16.1]} 41... Kb6 {[%clk 0:00:26.1]} 42. Rxg7 {[%clk 0:00:17]} 42... Rc4+
{[%clk 0:00:26.6]} 43. Ke3 {[%clk 0:00:15.8]} 43... Rf4 {[%clk 0:00:20.6]} 44.
g3 {[%clk 0:00:14.9]} 44... Rf5 {[%clk 0:00:20.7]} 45. Rg6 {[%clk 0:00:15.1]}
45... h5 {[%clk 0:00:21.2]} 46. Rh6 {[%clk 0:00:11.6]} 46... Kc5 {[%clk
0:00:20.9]} 47. Ke4 {[%clk 0:00:12.1]} 47... Rf2 {[%clk 0:00:21.6]} 48. Rxh5
{[%clk 0:00:12.3]} 48... Kd6 {[%clk 0:00:22.3]} 49. Rf5 {[%clk 0:00:09.8]} 49...
Rxf5 {[%clk 0:00:19]} 50. Kxf5 {[%clk 0:00:09.8]} 50... Kd5 {[%clk 0:00:19.7]}
51. h4 {[%clk 0:00:08.9]} 51... e4 {[%clk 0:00:20.3]} 52. Kf4 {[%clk 0:00:03.8]}
52... Kd4 {[%clk 0:00:20.7]} 53. h5 {[%clk 0:00:04.3]} 53... e3 {[%clk
0:00:21.4]} 54. h6 {[%clk 0:00:05.2]} 54... e2 {[%clk 0:00:22.1]} 55. h7 {[%clk
0:00:06]} 55... e1=Q {[%clk 0:00:22.9]} 56. h8=Q {[%clk 0:00:06.9]} 56... Qe4#
{[%clk 0:00:21.8]} 0-1

[Event "*** SCC Grand Prix: Titled Tuesday Blitz"]
[Site "Chess.com"]
[Date "2020.10.06"]
[Round "10"]
[White "Bigfish1995"]
[Black "GM_Levan_Pantsulaia"]
[Result "1-0"]
[WhiteElo "3104"]
[BlackElo "2816"]
[TimeControl "180+1"]
[EndTime "11:58:32 PDT"]
[Termination "Bigfish1995 won by resignation"]

1. e4 {[%clk 0:03:00.9]} 1... c6 {[%clk 0:02:58.6]} 2. d4 {[%clk 0:03:00.5]}
2... d5 {[%clk 0:02:59.5]} 3. f3 {[%clk 0:03:00.7]} 3... Qb6 {[%clk 0:02:56.4]}
4. a4 {[%clk 0:02:59.8]} 4... a6 {[%clk 0:02:48.5]} 5. a5 {[%clk 0:02:58.7]}
5... Qc7 {[%clk 0:02:48.7]} 6. c4 {[%clk 0:02:50.7]} 6... dxe4 {[%clk
0:02:47.1]} 7. fxe4 {[%clk 0:02:50.6]} 7... e5 {[%clk 0:02:47.8]} 8. d5 {[%clk
0:02:47]} 8... Nf6 {[%clk 0:02:47.6]} 9. Bd3 {[%clk 0:02:45.8]} 9... Bc5 {[%clk
0:02:41.9]} 10. Nf3 {[%clk 0:02:45]} 10... O-O {[%clk 0:02:41.5]} 11. Nc3 {[%clk
0:02:40.8]} 11... Bg4 {[%clk 0:02:39.2]} 12. h3 {[%clk 0:02:30.3]} 12... Bh5
{[%clk 0:02:39.3]} 13. g4 {[%clk 0:02:23.2]} 13... Bg6 {[%clk 0:02:39.4]} 14.
Qe2 {[%clk 0:02:17.6]} 14... Nbd7 {[%clk 0:02:38.1]} 15. Bd2 {[%clk 0:02:17.6]}
15... cxd5 {[%clk 0:02:20.4]} 16. Nxd5 {[%clk 0:02:13.1]} 16... Nxd5 {[%clk
0:02:19.1]} 17. cxd5 {[%clk 0:02:13.2]} 17... Qd6 {[%clk 0:02:15.4]} 18. h4
{[%clk 0:02:10.2]} 18... f6 {[%clk 0:01:53.4]} 19. h5 {[%clk 0:02:08.8]} 19...
Be8 {[%clk 0:01:53.5]} 20. Nh4 {[%clk 0:02:09.5]} 20... Rc8 {[%clk 0:01:36.4]}
21. Nf5 {[%clk 0:02:07.6]} 21... Qb8 {[%clk 0:01:37]} 22. b4 {[%clk 0:02:07.9]}
22... Bd4 {[%clk 0:01:31.8]} 23. Rb1 {[%clk 0:01:58]} 23... Kh8 {[%clk
0:01:31.7]} 24. Qh2 {[%clk 0:01:43.5]} 24... Bc3 {[%clk 0:01:29.1]} 25. Ne7
{[%clk 0:01:19.7]} 25... Bxd2+ {[%clk 0:01:13.5]} 26. Qxd2 {[%clk 0:01:19.4]}
26... Rd8 {[%clk 0:01:13.8]} 27. Ng6+ {[%clk 0:01:19]} 27... Kg8 {[%clk
0:01:05.9]} 28. Nxf8 {[%clk 0:01:15.3]} 28... Nxf8 {[%clk 0:01:06.8]} 29. g5
{[%clk 0:01:15.6]} 29... f5 {[%clk 0:01:03.7]} 30. g6 {[%clk 0:01:01.3]} 30...
hxg6 {[%clk 0:01:01.2]} 31. hxg6 {[%clk 0:00:59.8]} 31... Nxg6 {[%clk
0:01:01.3]} 32. Bc4 {[%clk 0:00:52.4]} 32... Bf7 {[%clk 0:00:54.1]} 33. exf5
{[%clk 0:00:41.9]} 33... Nf4 {[%clk 0:00:54.2]} 34. Qh2 {[%clk 0:00:41.4]} 34...
Kf8 {[%clk 0:00:54.5]} 35. Qh8+ {[%clk 0:00:38.1]} 35... Ke7 {[%clk 0:00:43.8]}
36. Qxg7 {[%clk 0:00:37.9]} 36... Rg8 {[%clk 0:00:43.9]} 37. d6+ {[%clk
0:00:35.9]} 37... Kxd6 {[%clk 0:00:39]} 38. Qxf7 {[%clk 0:00:32.6]} 38... Ng2+
{[%clk 0:00:26.9]} 39. Kf2 {[%clk 0:00:32.2]} 39... Qa7+ {[%clk 0:00:26]} 40.
Kf1 {[%clk 0:00:29.4]} 40... Ne3+ {[%clk 0:00:25.1]} 41. Ke1 {[%clk 0:00:16.6]}
41... Ng2+ {[%clk 0:00:20.5]} 42. Kd2 {[%clk 0:00:12.1]} 42... Qd4+ {[%clk
0:00:18.8]} 43. Kc2 {[%clk 0:00:11.9]} 43... Ne3+ {[%clk 0:00:18.1]} 44. Kb3
{[%clk 0:00:12.4]} 44... Nxc4 {[%clk 0:00:14.1]} 45. Rh6+ {[%clk 0:00:12.3]} 1-0

[Event "*** SCC Grand Prix: Titled Tuesday Blitz"]
[Site "Chess.com"]
[Date "2020.10.06"]
[Round "10"]
[White "AliKa2810"]
[Black "WIDBIFS"]
[Result "1-0"]
[WhiteElo "2579"]
[BlackElo "2722"]
[TimeControl "180+1"]
[EndTime "11:58:32 PDT"]
[Termination "AliKa2810 won on time"]

1. d4 {[%clk 0:03:00.9]} 1... Nf6 {[%clk 0:02:59.3]} 2. c4 {[%clk 0:03:00.9]}
2... g6 {[%clk 0:02:59.7]} 3. Nc3 {[%clk 0:03:00.7]} 3... Bg7 {[%clk 0:02:58.2]}
4. e4 {[%clk 0:03:00.4]} 4... d6 {[%clk 0:02:58.7]} 5. h3 {[%clk 0:03:01]} 5...
O-O {[%clk 0:02:59.1]} 6. Be3 {[%clk 0:03:01.6]} 6... Nc6 {[%clk 0:02:55.6]} 7.
d5 {[%clk 0:03:00.8]} 7... Nb4 {[%clk 0:02:56.1]} 8. Nf3 {[%clk 0:02:52.3]} 8...
c6 {[%clk 0:02:51.5]} 9. Be2 {[%clk 0:02:45]} 9... e5 {[%clk 0:02:49.7]} 10. O-O
{[%clk 0:02:16.3]} 10... c5 {[%clk 0:02:44]} 11. Ne1 {[%clk 0:02:01.2]} 11...
Ne8 {[%clk 0:02:37.7]} 12. a3 {[%clk 0:02:00.8]} 12... Na6 {[%clk 0:02:37.5]}
13. Nd3 {[%clk 0:02:01.4]} 13... f5 {[%clk 0:02:37.5]} 14. b4 {[%clk 0:01:59]}
14... b6 {[%clk 0:02:32.4]} 15. Rb1 {[%clk 0:01:56.7]} 15... f4 {[%clk
0:02:28.8]} 16. Bd2 {[%clk 0:01:55.1]} 16... h5 {[%clk 0:02:28.1]} 17. Nb5
{[%clk 0:01:49.2]} 17... Bd7 {[%clk 0:01:48.9]} 18. Rb3 {[%clk 0:01:32.5]} 18...
Qh4 {[%clk 0:01:44.3]} 19. bxc5 {[%clk 0:01:24.2]} 19... Nxc5 {[%clk 0:01:44.5]}
20. Nxc5 {[%clk 0:01:24]} 20... dxc5 {[%clk 0:01:45.4]} 21. a4 {[%clk
0:01:12.9]} 21... Bxb5 {[%clk 0:01:44.4]} 22. Rxb5 {[%clk 0:01:07]} 22... Nd6
{[%clk 0:01:43.8]} 23. Bf3 {[%clk 0:00:53.7]} 23... Nxc4 {[%clk 0:01:21.9]} 24.
Bc3 {[%clk 0:00:52]} 24... Nd6 {[%clk 0:01:21.5]} 25. Rb3 {[%clk 0:00:49.9]}
25... Rab8 {[%clk 0:01:20.5]} 26. Qa1 {[%clk 0:00:48]} 26... Rfe8 {[%clk
0:01:12.9]} 27. Re1 {[%clk 0:00:41.7]} 27... Bf6 {[%clk 0:00:56.4]} 28. Qd1
{[%clk 0:00:40.6]} 28... Kg7 {[%clk 0:00:54.5]} 29. Qe2 {[%clk 0:00:39.9]} 29...
Qg5 {[%clk 0:00:51.7]} 30. Reb1 {[%clk 0:00:39.1]} 30... Kh6 {[%clk 0:00:30]}
31. a5 {[%clk 0:00:37.3]} 31... c4 {[%clk 0:00:12.1]} 32. R3b2 {[%clk
0:00:33.4]} 32... b5 {[%clk 0:00:10.3]} 33. Bb4 {[%clk 0:00:33]} 33... Nf7
{[%clk 0:00:09.5]} 34. a6 {[%clk 0:00:32.5]} 34... Be7 {[%clk 0:00:09.2]} 35.
Bxe7 {[%clk 0:00:31.7]} 35... Qxe7 {[%clk 0:00:10.1]} 36. Rxb5 {[%clk
0:00:32.3]} 36... Rxb5 {[%clk 0:00:10.7]} 37. Rxb5 {[%clk 0:00:33]} 37... Nd6
{[%clk 0:00:11.6]} 38. Rc5 {[%clk 0:00:28]} 38... Nxe4 {[%clk 0:00:08.7]} 39.
Rxc4 {[%clk 0:00:27.6]} 39... Nd6 {[%clk 0:00:08.7]} 40. Rc6 {[%clk 0:00:19.3]}
40... e4 {[%clk 0:00:08.6]} 41. Qd2 {[%clk 0:00:19.6]} 41... g5 {[%clk
0:00:05.2]} 42. Qb4 {[%clk 0:00:15.9]} 42... Rd8 {[%clk 0:00:05.9]} 43. Bxe4
{[%clk 0:00:15]} 43... Kg7 {[%clk 0:00:04.3]} 44. Bf3 {[%clk 0:00:14.2]} 44...
Qe5 {[%clk 0:00:03.1]} 45. Bxh5 {[%clk 0:00:12.7]} 45... Nf5 {[%clk 0:00:01.6]}
46. Qb7+ {[%clk 0:00:11.8]} 46... Kh8 {[%clk 0:00:01.3]} 47. Rc7 {[%clk
0:00:08.7]} 1-0

[Event "*** SCC Grand Prix: Titled Tuesday Blitz"]
[Site "Chess.com"]
[Date "2020.10.06"]
[Round "10"]
[White "Kildepiotr"]
[Black "Balla_Tamas"]
[Result "1-0"]
[WhiteElo "2594"]
[BlackElo "2444"]
[TimeControl "180+1"]
[EndTime "11:58:38 PDT"]
[Termination "Kildepiotr won by resignation"]

1. Nf3 {[%clk 0:03:00.9]} 1... c5 {[%clk 0:02:58]} 2. g3 {[%clk 0:02:59.8]} 2...
Nc6 {[%clk 0:02:55.7]} 3. Bg2 {[%clk 0:03:00.7]} 3... g6 {[%clk 0:02:56.2]} 4.
O-O {[%clk 0:03:00.7]} 4... Bg7 {[%clk 0:02:56.8]} 5. c3 {[%clk 0:03:01.6]} 5...
e6 {[%clk 0:02:55.4]} 6. d3 {[%clk 0:02:59.7]} 6... Nge7 {[%clk 0:02:54.9]} 7.
e4 {[%clk 0:02:59.7]} 7... O-O {[%clk 0:02:54.3]} 8. Be3 {[%clk 0:02:59.4]} 8...
b6 {[%clk 0:02:53.6]} 9. a4 {[%clk 0:02:55]} 9... Bb7 {[%clk 0:02:53]} 10. Nbd2
{[%clk 0:02:52.1]} 10... d5 {[%clk 0:02:52.6]} 11. Nb3 {[%clk 0:02:48.6]} 11...
Qd7 {[%clk 0:02:46.8]} 12. a5 {[%clk 0:02:46.7]} 12... Rad8 {[%clk 0:02:31]} 13.
axb6 {[%clk 0:02:37.7]} 13... axb6 {[%clk 0:02:30.8]} 14. Qc1 {[%clk 0:02:36.9]}
14... f5 {[%clk 0:02:07.4]} 15. Bh6 {[%clk 0:02:33.5]} 15... c4 {[%clk
0:01:56.6]} 16. Bxg7 {[%clk 0:02:31.7]} 16... Kxg7 {[%clk 0:01:55.1]} 17. exd5
{[%clk 0:02:31.6]} 17... exd5 {[%clk 0:01:51.2]} 18. Nbd4 {[%clk 0:02:26]} 18...
Nxd4 {[%clk 0:01:44.6]} 19. Nxd4 {[%clk 0:02:24.6]} 19... Nc6 {[%clk 0:01:45.2]}
20. Qf4 {[%clk 0:02:16]} 20... Rfe8 {[%clk 0:01:39.6]} 21. Nxc6 {[%clk 0:02:05]}
21... Bxc6 {[%clk 0:01:29.5]} 22. Qd4+ {[%clk 0:02:04.8]} 22... Kg8 {[%clk
0:01:29.6]} 23. Qxb6 {[%clk 0:02:04.7]} 23... Rb8 {[%clk 0:01:27]} 24. Qd4
{[%clk 0:02:02.6]} 24... cxd3 {[%clk 0:01:20.6]} 25. Ra7 {[%clk 0:02:00.7]}
25... Rb7 {[%clk 0:01:18.5]} 26. Rxb7 {[%clk 0:01:57.9]} 26... Qxb7 {[%clk
0:01:19.1]} 27. Qxd3 {[%clk 0:01:57.1]} 27... Qxb2 {[%clk 0:01:14.3]} 28. Bxd5+
{[%clk 0:01:56.3]} 28... Bxd5 {[%clk 0:01:14.8]} 29. Qxd5+ {[%clk 0:01:57.2]}
29... Kh8 {[%clk 0:01:13.8]} 30. Qd4+ {[%clk 0:01:55.8]} 30... Kg8 {[%clk
0:01:12.5]} 31. Qc4+ {[%clk 0:01:53.6]} 31... Kh8 {[%clk 0:01:12]} 32. Rd1
{[%clk 0:01:53.6]} 32... Qe2 {[%clk 0:01:10.5]} 33. Qd4+ {[%clk 0:01:51.8]}
33... Kg8 {[%clk 0:01:09.4]} 34. Ra1 {[%clk 0:01:45.1]} 34... Qe5 {[%clk
0:01:05.3]} 35. Qc4+ {[%clk 0:01:40.3]} 35... Qe6 {[%clk 0:01:05.1]} 36. Qb5
{[%clk 0:01:35.7]} 36... Rc8 {[%clk 0:01:01.6]} 37. Qb7 {[%clk 0:01:15.5]} 37...
Qc6 {[%clk 0:00:56.3]} 38. Qe7 {[%clk 0:01:10.8]} 38... Qc7 {[%clk 0:00:42.1]}
39. Qe6+ {[%clk 0:01:07.6]} 39... Kh8 {[%clk 0:00:42.6]} 40. Ra7 {[%clk
0:00:58.2]} 40... Qxa7 {[%clk 0:00:35.2]} 41. Qxc8+ {[%clk 0:00:58]} 41... Kg7
{[%clk 0:00:35.7]} 42. Qc6 {[%clk 0:00:58.3]} 42... Qa1+ {[%clk 0:00:31.5]} 43.
Kg2 {[%clk 0:00:58]} 43... Qe1 {[%clk 0:00:30.7]} 44. c4 {[%clk 0:00:54.6]}
44... Qc3 {[%clk 0:00:28.4]} 45. Qd5 {[%clk 0:00:52.6]} 45... h5 {[%clk
0:00:26.2]} 46. h4 {[%clk 0:00:51.9]} 46... Kf6 {[%clk 0:00:23.2]} 47. c5 {[%clk
0:00:48.9]} 47... Qe5 {[%clk 0:00:22.3]} 48. Qd8+ {[%clk 0:00:45.6]} 48... Kf7
{[%clk 0:00:20.7]} 49. Qd7+ {[%clk 0:00:43.1]} 49... Kf6 {[%clk 0:00:20.1]} 50.
c6 {[%clk 0:00:39.3]} 50... Qe4+ {[%clk 0:00:19.6]} 51. Kh2 {[%clk 0:00:39.4]}
51... Qf3 {[%clk 0:00:18.8]} 52. Qd6+ {[%clk 0:00:36.6]} 52... Kf7 {[%clk
0:00:18.5]} 53. Qc5 {[%clk 0:00:36.5]} 53... f4 {[%clk 0:00:15.8]} 54. c7 {[%clk
0:00:29.3]} 54... fxg3+ {[%clk 0:00:15.3]} 55. fxg3 {[%clk 0:00:29.6]} 55...
Qe2+ {[%clk 0:00:15.1]} 56. Kg1 {[%clk 0:00:29.9]} 56... Qd1+ {[%clk 0:00:14.6]}
57. Kg2 {[%clk 0:00:28.6]} 57... Qe2+ {[%clk 0:00:03.3]} 58. Qf2+ {[%clk
0:00:28.2]} 58... Qxf2+ {[%clk 0:00:03.1]} 59. Kxf2 {[%clk 0:00:29.1]} 1-0

[Event "*** SCC Grand Prix: Titled Tuesday Blitz"]
[Site "Chess.com"]
[Date "2020.10.06"]
[Round "10"]
[White "SilviusTiberius"]
[Black "GlennTipton"]
[Result "1-0"]
[WhiteElo "2633"]
[BlackElo "2433"]
[TimeControl "180+1"]
[EndTime "11:58:38 PDT"]
[Termination "SilviusTiberius won by checkmate"]

1. e4 {[%clk 0:03:00.9]} 1... e5 {[%clk 0:02:46.1]} 2. Nf3 {[%clk 0:03:01]} 2...
Nc6 {[%clk 0:02:46]} 3. Bb5 {[%clk 0:03:01.4]} 3... a6 {[%clk 0:02:46.2]} 4. Ba4
{[%clk 0:03:01.6]} 4... Nf6 {[%clk 0:02:45.5]} 5. O-O {[%clk 0:03:01.8]} 5...
Be7 {[%clk 0:02:44.9]} 6. Re1 {[%clk 0:03:02.1]} 6... b5 {[%clk 0:02:43.3]} 7.
Bb3 {[%clk 0:03:02.2]} 7... d6 {[%clk 0:02:43.9]} 8. c3 {[%clk 0:03:02.5]} 8...
O-O {[%clk 0:02:42.8]} 9. h3 {[%clk 0:03:02.9]} 9... Na5 {[%clk 0:02:42.8]} 10.
Bc2 {[%clk 0:03:03.2]} 10... c5 {[%clk 0:02:43]} 11. d4 {[%clk 0:03:03.5]} 11...
Nd7 {[%clk 0:02:42.1]} 12. d5 {[%clk 0:03:02.5]} 12... Nb6 {[%clk 0:02:39]} 13.
b3 {[%clk 0:03:02.5]} 13... f5 {[%clk 0:02:28.3]} 14. exf5 {[%clk 0:03:00.8]}
14... Bxf5 {[%clk 0:02:28.8]} 15. Bxf5 {[%clk 0:03:00.3]} 15... Rxf5 {[%clk
0:02:29.7]} 16. c4 {[%clk 0:02:55.4]} 16... bxc4 {[%clk 0:02:18.9]} 17. Bd2
{[%clk 0:02:52.1]} 17... cxb3 {[%clk 0:02:12.9]} 18. axb3 {[%clk 0:02:46.5]}
18... Nb7 {[%clk 0:02:07.4]} 19. Nc3 {[%clk 0:02:45.9]} 19... c4 {[%clk
0:01:58.4]} 20. b4 {[%clk 0:02:43]} 20... a5 {[%clk 0:01:58.7]} 21. bxa5 {[%clk
0:02:28.1]} 21... Rxa5 {[%clk 0:01:56.8]} 22. Rb1 {[%clk 0:02:23.2]} 22... Nc5
{[%clk 0:01:54.8]} 23. Ne4 {[%clk 0:02:14.9]} 23... Nbd7 {[%clk 0:01:35.3]} 24.
Bxa5 {[%clk 0:02:12.2]} 24... Qxa5 {[%clk 0:01:35.2]} 25. Nxc5 {[%clk
0:01:55.3]} 25... Nxc5 {[%clk 0:01:27.1]} 26. Nd4 {[%clk 0:01:55.1]} 26... Rf8
{[%clk 0:01:13.6]} 27. Nc6 {[%clk 0:01:54.8]} 27... Qc7 {[%clk 0:01:09.3]} 28.
Qc2 {[%clk 0:01:48.4]} 28... Nd3 {[%clk 0:01:09.4]} 29. Rf1 {[%clk 0:01:35.6]}
29... Bh4 {[%clk 0:01:01.7]} 30. g3 {[%clk 0:01:34.1]} 30... Qd7 {[%clk
0:00:47.6]} 31. Qxc4 {[%clk 0:01:28.5]} 31... Nf4 {[%clk 0:00:46.7]} 32. gxf4
{[%clk 0:01:02.2]} 32... Qxh3 {[%clk 0:00:46.5]} 33. Rb3 {[%clk 0:00:40.8]}
33... Qg4+ {[%clk 0:00:41.7]} 34. Kh2 {[%clk 0:00:31.1]} 34... Rxf4 {[%clk
0:00:38.5]} 35. Qd3 {[%clk 0:00:18.7]} 35... Bxf2 {[%clk 0:00:27.5]} 36. Qh3
{[%clk 0:00:13.5]} 36... Bg1+ {[%clk 0:00:24.6]} 37. Rxg1 {[%clk 0:00:08.9]}
37... Rf2+ {[%clk 0:00:24.7]} 38. Kh1 {[%clk 0:00:09.1]} 38... Qe4+ {[%clk
0:00:24.6]} 39. Rg2 {[%clk 0:00:09.1]} 39... Rf1+ {[%clk 0:00:15.1]} 40. Kh2
{[%clk 0:00:09]} 40... Qf4+ {[%clk 0:00:14.8]} 41. Rbg3 {[%clk 0:00:08.7]} 41...
g6 {[%clk 0:00:12.2]} 42. Qe6+ {[%clk 0:00:08.3]} 42... Kg7 {[%clk 0:00:12.3]}
43. Qe7+ {[%clk 0:00:07.5]} 43... Kh6 {[%clk 0:00:12.3]} 44. Qe6 {[%clk
0:00:06.4]} 44... Qc1 {[%clk 0:00:09.1]} 45. Rh3+ {[%clk 0:00:05.3]} 45... Kg7
{[%clk 0:00:08.4]} 46. Qe7+ {[%clk 0:00:05.5]} 46... Kg8 {[%clk 0:00:08]} 47.
Qxh7+ {[%clk 0:00:03.8]} 47... Kf8 {[%clk 0:00:08.5]} 48. Qh8+ {[%clk
0:00:03.7]} 48... Kf7 {[%clk 0:00:09.1]} 49. Rh7# {[%clk 0:00:04.2]} 1-0